[Event "Arona Festival 2024"]
[Site "Arona Tenerife"]
[Date "2024.06.27"]
[Round "7.6"]
[White "Krysa, Leandro"]
[Black "Zhao, Yuanhe"]
[Result "0-1"]
[ECO "E71"]
[WhiteElo "2535"]
[BlackElo "2463"]
[Annotator "TA"]
[PlyCount "123"]
[EventDate "2024.06.20"]
[EventType "swiss"]
[EventCountry "ESP"]
[SourceTitle "playchess.com"]
[Source "ChessBase"]
[SourceQuality "1"]
[TimeControl "5400+30"]

{[%evp 39,123,-8,-5,-10,-20,-8,0,-105,-87,-99,-115,-123,-116,-160,-160,-141,-122,-143,-157,-193,-193,-193,-159,-200,-200,-207,-207,-207,-207,-207,-207,-207,-206,-206,-206,-206,-122,-259,-253,-643,-597,-855,-855,-855,-848,-850,-525,-754,-710,-774,-768,-808,-732,-764,-783,-787,-742,-870,-870,-29956,-29964,-29960,-29968,-29951,-29960,-29956,-29962,-29963,-29971,-29970,-29970,-29969,-29972,-29975,-29972,-29972,-29950,-29969,-29970,-29965,0,-29968,-29967,-6119,-5988,-2205]} 1. d4 {[%emt 0:00:07]} Nf6 {[%emt 0:00:22]} 2. c4 {[%emt 0:00:20]} g6 {[%emt 0:00:05]} 3. Nc3 {[%emt 0:00:14]} Bg7 {[%emt 0:00:41]} 4. e4 {[%emt 0:00:36]} d6 {[%emt 0:00:08]} 5. h3 {[%emt 0:00:24]} O-O {[%emt 0:00:17]} 6. Be3 {[%emt 0:00:22]} e5 {[%emt 0:00:31]} 7. d5 {[%emt 0:03:00]} Na6 {[%emt 0:00:33]} 8. g4 {E71: King's Indian: 4 e4 d6 5 h3.} Nc5 {[%emt 1:31:53]} 9. f3 {[%emt 0:00:50]} a5 {[%emt 0:00:30]} 10. Qd2 {[%emt 1:29:37] 10.Nge2 gains popularity.} c6 {[%emt 0:00:00]} 11. Nge2 {[%emt 0:00:00]} cxd5 {[%emt 0:00:00]} 12. cxd5 {[%emt 0:01:00]} h5 {[%emt 0:01:30]} 13. Nc1 {[%emt 0:00:00]} a4 $146 {[%emt 0:00:00]} ({Predecessor:} 13... Ne8 14. Nd3 b6 15. O-O-O h4 16. Kb1 Nc7 17. g5 a4 18. Nb4 Bd7 19. Rg1 Qe7 {1-0 Zakhartsov,V (2547)-Matinian,N (2407) ChessKid Cup Play In blitz 2023 (8)}) 14. Nd3 {[%emt 0:00:00]} Nfd7 {[%emt 0:01:00]} 15. Nxc5 {[%emt 0:00:00]} Nxc5 {[%emt 0:00:00]} 16. O-O-O {[%emt 0:00:00]} h4 {[%emt 0:00:00]} 17. Bxc5 {[%emt 0:00:00]} dxc5 {[%emt 0:00:00]} 18. Kb1 {[%emt 0:00:00]} a3 {[%emt 0:00:00]} 19. b3 {[%emt 0:00:00]} Qa5 {[%emt 0:00:00]} 20. Bc4 {[%emt 0:00:00]} Bd7 {[%emt 0:00:00]} 21. Qd3 {[%emt 0:00:00]} Rfb8 {[%emt 0:00:00]} 22. Nb5 {[%emt 0:00:00]} Qb4 {[%emt 0:00:00]} 23. Qd2 {[%emt 0:00:00]} (23. d6 $11 Bxb5 24. Bxb5) 23... Qxd2 $17 {[%emt 0:00:00]} 24. Rxd2 {[%emt 0:00:00]} Ra5 {[%emt 0:00:00]} 25. Nc3 {[%emt 0:00:00]} Bh6 {[%emt 0:00:00]} 26. Rc2 {[%emt 0:00:00]} b5 {[%emt 0:00:00]} 27. Be2 {[%emt 0:00:00]} Be3 {[%emt 0:00:00]} 28. Rd1 {[%emt 0:00:26]} c4 {[%emt 0:00:00]} 29. b4 {[%emt 0:00:57]} Ra6 {[%emt 0:00:00]} 30. Bf1 {[%emt 0:01:29]} Bd4 {[%emt 0:00:00]} 31. Ne2 {[%emt 0:02:41]} Bb2 {[%emt 0:00:00]} 32. Nc3 {[%emt 0:00:37]} Rba8 {[%emt 0:00:00]} 33. Rxb2 {[%emt 0:00:49]} axb2 {[%emt 0:00:00]} 34. Kxb2 {[%emt 0:00:07]} Kf8 {[%emt 0:00:00]} 35. Bg2 {[%emt 0:01:06]} Ke7 {[%emt 0:00:00]} 36. f4 {[%emt 0:00:38]} exf4 {[%emt 0:00:00]} 37. e5 {[%emt 0:00:22]} R8a7 {[%emt 0:00:00]} (37... Kf8 $19 38. Re1 Kg7) 38. g5 {[%emt 0:02:55] [#]} (38. a4 Rxa4 (38... bxa4 39. d6+ Kd8 40. Ka3 $11) 39. Nxa4 Rxa4) (38. d6+ $17 {was necessary.} Ke8 (38... Ke6 39. Re1 $16) 39. g5) 38... Ra3 $1 $19 {[%emt 0:00:00]} 39. Rd4 $2 {[%emt 0:00:51]} (39. Rf1 Bf5 40. Rc1 (40. Rxf4 $2 Rxc3 41. d6+ Ke6 $19)) 39... f3 {[%emt 0:00:00]} 40. Bf1 {[%emt 0:00:26]} Rxc3 {[%emt 0:00:00]} 41. Kxc3 {[%emt 0:00:10]} Rxa2 {[%emt 0:00:00]} 42. Rd1 {[%emt 0:00:55]} Rh2 {[%emt 0:00:00]} 43. d6+ {[%emt 0:00:28]} Ke6 {[%emt 0:00:00]} 44. Kd4 {[%emt 0:00:10]} Rb2 {[%emt 0:00:00]} 45. Kc5 {[%emt 0:00:51]} Rb3 {[%emt 0:00:00]} 46. Re1 {[%emt 0:00:31]} f2 {[%emt 0:00:00]} 47. Re2 {[%emt 0:00:10]} Rf3 {[%emt 0:00:00]} 48. Kd4 {[%emt 0:00:49]} Rd3+ {[%emt 0:00:00]} 49. Ke4 {[%emt 0:00:28]} Bc6+ {[%emt 0:00:27]} 50. Kf4 {[%emt 0:00:04]} Rd4+ {[%emt 0:00:20]} 51. Ke3 {[%emt 0:00:06]} Re4+ {[%emt 0:00:04]} 52. Kxf2 {[%emt 0:00:11]} Rxe2+ {[%emt 0:00:02]} (52... Kxe5 $2 {too greedy.} 53. Rxe4+ Kxd6 54. Rxh4 $18) 53. Bxe2 {[%emt 0:01:24]} Kxe5 {[%emt 0:00:03]} 54. Ke3 {[%emt 0:00:12]} Bd7 {[%emt 0:00:27]} 55. Bf1 {[%emt 0:00:22]} Kxd6 {[%emt 0:02:29]} 56. Kd4 {[%emt 0:00:04]} Bc6 {[%emt 0:00:09]} 57. Be2 {[%emt 0:00:11]} Bd5 {[%emt 0:00:12]} 58. Bf1 {[%emt 0:00:36]} Be6 {[%emt 0:03:56]} 59. Bg2 {[%emt 0:00:09]} Bd7 {[%emt 0:00:18]} 60. Bf1 {[%emt 0:00:12]} Ke7 {[%emt 0:00:24]} 61. Ke3 {[%emt 0:02:15]} f6 {[%emt 0:00:08]} 62. Kd4 {[%emt 0:01:18]} 0-1

[Event "Arona Festival 2024"]
[Site "Arona Tenerife"]
[Date "2024.06.27"]
[Round "7.7"]
[White "Sosa, Tomas"]
[Black "Ayush Sharma"]
[Result "1/2-1/2"]
[ECO "B22"]
[WhiteElo "2535"]
[BlackElo "2325"]
[Annotator "TA"]
[PlyCount "72"]
[EventDate "2024.06.20"]
[EventType "swiss"]
[EventCountry "ESP"]
[SourceTitle "playchess.com"]
[Source "ChessBase"]
[SourceQuality "1"]
[TimeControl "5400+30"]

{[%evp 13,72,4,7,11,2,8,8,-3,12,6,0,0,38,10,0,2,4,0,0,0,0,0,7,16,9,4,12,7,16,0,0,0,0,0,0,0,0,0,0,0,0,0,0,0,0,0,0,0,0,0,0,-1,0,-8,0,0,0,0,0,0,0]} 1. e4 {[%emt 0:00:58][%cal Be2e4,Be4e5][%mdl 32]} c5 {[%emt 0:03:44]} 2. c3 {[%emt 0:00:06]} Nf6 {[%emt 0:04:26]} 3. e5 {[%emt 0:00:16]} Nd5 {[%emt 0:00:11]} 4. Nf3 {[%emt 0:00:18]} Nc6 {[%emt 0:01:00]} 5. Bc4 {[%emt 0:00:23]} Nb6 {[%emt 0:01:00]} 6. Bb3 {[%emt 0:00:11]} d5 {[%emt 0:02:05]} 7. exd6 {[%emt 0:00:25]} Qxd6 {[%emt 0:00:19]} 8. O-O {[%emt 0:00:13]} Be6 {[%emt 0:03:53]} 9. Bxe6 {[%emt 0:00:15]} Qxe6 {[%emt 0:00:02]} 10. a4 {[%emt 0:00:09]} a6 {[%emt 0:02:45]} 11. d4 {[%emt 0:01:09]} cxd4 {[%emt 0:05:08]} 12. cxd4 {[%emt 0:05:16]} Qd7 {[%emt 0:04:44]} 13. Nc3 {[%emt 0:00:13] [#] Threatens to win with Qb3.} e6 {[%emt 0:00:28] The position is equal.} 14. Qb3 {[%emt 0:03:40]} Bb4 {[%emt 0:07:06][%cal Od7d6]} 15. Rd1 {[%emt 0:07:12]} O-O {[%emt 0:20:39]} 16. a5 {[%emt 0:10:58]} Nd5 {[%emt 0:00:46]} (16... Nxa5 $2 17. Qxb4 Nac4 18. b3 $18) (16... Bxa5 $6 17. Rxa5 Nxa5 18. Qxb6 $16) 17. Ne5 {[%emt 0:01:01]} Nxe5 {[%emt 0:02:52]} ({But not} 17... Nxa5 $2 18. Qxb4 (18. Nxd7 Nxb3 19. Nxd5 exd5 $15) 18... Nxb4 19. Nxd7 $18) 18. Nxd5 {[%emt 0:00:16]} Qxd5 {[%emt 0:00:58]} 19. Qxd5 {[%emt 0:00:06]} exd5 {[%emt 0:00:03]} 20. dxe5 {[%emt 0:00:08][%cal Oc1e3]} Rac8 {[%emt 0:05:24]} 21. Rxd5 {[%emt 0:08:24]} Rfd8 {[%emt 0:01:02]} 22. Rxd8+ {[%emt 0:01:03]} Rxd8 $11 {[%emt 0:00:02][%cal Rd8d1][%mdl 4096] [#] Endgame. KRB-KRB} 23. Be3 {[%emt 0:01:34]} Bxa5 {[%emt 0:00:16]} 24. f4 {[%emt 0:01:22]} Rd5 {[%emt 0:07:03][%cal Og7g5]} 25. Rc1 {[%emt 0:04:11]} h5 {[%emt 0:01:25]} 26. Kf2 {[%emt 0:08:49]} Rb5 {[%emt 0:02:23]} 27. Rc8+ {[%emt 0:04:22]} Kh7 {[%emt 0:00:03]} 28. Bc1 {[%emt 0:00:13]} Kg6 {[%emt 0:00:55]} 29. h3 {[%emt 0:01:09]} Kf5 {[%emt 0:02:01]} 30. Rf8 {[%emt 0:11:04]} Ke4 {[%emt 0:01:22] aiming for ...Rc5.} 31. Ke2 $1 {[%emt 0:00:05]} (31. Rxf7 $2 {perishes.} Rc5 32. e6 Rc2+ (32... Rxc1 $2 {too greedy.} 33. e7 $18) 33. Kf1 Rxc1+ $19) 31... Rc5 {[%emt 0:00:51]} 32. Kd1 {[%emt 0:00:36]} Rc7 {[%emt 0:01:18]} 33. Rg8 {[%emt 0:00:28]} g6 {[%emt 0:01:00]} 34. e6 {[%emt 0:02:34]} Kf5 {[%emt 0:01:39]} 35. exf7 {[%emt 0:01:25]} Rxf7 {[%emt 0:00:03]} 36. Ke2 {[%emt 0:02:09]} h4 {[%emt 0:03:06] An interesting draw.   Weighted Error Value: White=0.02 (flawless) /Black=0.04 (flawless) .  Inaccurate:     	White=1     	Black=1      OK:         	White=16    	Black=13     Best:        	White=1     	Black=1      Strong:       	White=1     	---} 1/2-1/2

[Event "Arona Festival 2024"]
[Site "Arona Tenerife"]
[Date "2024.06.27"]
[Round "7.8"]
[White "Bilguun, Sumiya"]
[Black "Baenziger, Fabian"]
[Result "1/2-1/2"]
[ECO "C07"]
[WhiteElo "2466"]
[BlackElo "2410"]
[Annotator "TA"]
[PlyCount "51"]
[EventDate "2024.06.20"]
[EventType "swiss"]
[EventCountry "ESP"]
[SourceTitle "playchess.com"]
[Source "ChessBase"]
[SourceQuality "1"]
[TimeControl "5400+30"]

{[%evp 10,51,32,7,20,7,14,20,23,0,0,18,14,16,20,13,15,13,18,20,19,15,19,8,16,0,0,0,0,0,5,-35,-32,-25,-10,-35,-10,-37,-32,-78,-74,-85,-33,-37]} 1. e4 {[%emt 0:00:03]} e6 {[%emt 0:02:43]} 2. d4 {[%emt 0:03:06]} d5 {[%emt 0:00:07]} 3. Nd2 {[%emt 0:00:10]} c5 {[%emt 0:00:28]} 4. Ngf3 {[%emt 0:00:16]} cxd4 {[%emt 0:00:10]} 5. exd5 {[%emt 0:00:15]} Qxd5 {[%emt 0:00:06]} 6. Bc4 {[%emt 0:00:08]} Qd7 {[%emt 0:00:41]} 7. O-O {[%emt 0:00:18][%mdl 1024] White has compensation.} Nc6 {[%emt 0:00:07]} 8. Nb3 {[%emt 0:00:13]} a6 {[%emt 0:00:26] The position is equal.} 9. Qe2 {[%emt 0:03:23]} Nf6 {[%emt 0:07:55]} (9... b5 $5 10. Bd3 $8 Nf6 $11) 10. a4 {[%emt 0:17:40]} Bd6 {[%emt 0:06:41]} 11. Rd1 {[%emt 0:03:42]} O-O {[%emt 0:00:27]} 12. Nbxd4 {[%emt 0:00:29]} e5 {[%emt 0:00:06]} 13. Nxc6 {[%emt 0:07:24]} Qxc6 {[%emt 0:00:05]} 14. Bg5 {[%emt 0:00:25][%cal Og5f6] next Bxf6! is good for White.} Bc7 {[%emt 0:00:03]} 15. Bxf6 {[%emt 0:09:04]} Qxf6 {[%emt 0:00:29]} 16. Bd5 {[%emt 0:00:17]} g6 {[%emt 0:07:57]} 17. Ra3 {[%emt 0:18:32]} Kg7 {[%emt 0:20:54]} 18. Re3 {[%emt 0:05:41]} Re8 {[%emt 0:01:30]} 19. c4 {[%emt 0:05:25]} Qe7 {[%emt 0:08:12]} 20. h4 {[%emt 0:09:07][%cal Oc4c5]} Rb8 {[%emt 0:08:05]} 21. Re1 {[%emt 0:02:20][%cal Rf3e5]} Bg4 {[%emt 0:04:38]} 22. Qd2 {[%emt 0:01:20] [#] Nxe5 would now be deadly.} f6 {[%emt 0:02:10]} 23. Nh2 {[%emt 0:02:13]} Bd7 {[%emt 0:01:39]} 24. b3 {[%emt 0:04:07]} (24. h5 $15) 24... Bd6 {[%emt 0:08:50]} 25. Rd1 {[%emt 0:01:48] Bf3 is the strong threat.} Bb4 {[%emt 0:01:47] This pair of bishops is nice.} (25... Bc5 $17 26. Rg3 Rbd8) 26. Qb2 {[%emt 0:01:47] Weighted Error Value: White=0.08 (flawless) /Black=0.04 (flawless) .  Mistake:       	White=1     	Black=1      Inaccurate:     	White=2     	---        OK:         	White=8     	Black=10     Best:        	White=1     	---} 1/2-1/2

[Event "Arona Festival 2024"]
[Site "Arona Tenerife"]
[Date "2024.06.27"]
[Round "7.9"]
[White "Kuegel, Tobias"]
[Black "Albornoz Cabrera, Carlos Daniel"]
[Result "1/2-1/2"]
[ECO "B55"]
[WhiteElo "2416"]
[BlackElo "2614"]
[Annotator "TA"]
[PlyCount "144"]
[EventDate "2024.06.20"]
[EventType "swiss"]
[EventCountry "ESP"]
[SourceTitle "playchess.com"]
[Source "ChessBase"]
[SourceQuality "1"]
[TimeControl "5400+30"]

{[%evp 31,144,-3,0,0,0,0,0,0,0,0,0,0,0,0,0,0,0,0,0,-8,-6,-17,0,0,0,0,0,0,0,0,0,0,0,0,0,0,0,0,0,-2,-8,-49,-49,-49,-49,-49,-49,-49,-44,-44,-44,-44,-44,-44,-44,-44,-44,-44,-44,-49,-35,-35,-29,-35,-35,-35,-35,-36,-36,-36,-36,-42,-49,-49,-49,-49,0,0,0,0,0,0,0,0,0,0,0,0,0,0,0,0,0,0,0,0,0,0,0,0,0,0,0,0,0,0,0,0,0,0,0,0,0,0,0]} 1. e4 {[%emt 0:07:01]} c5 {[%emt 0:00:02]} 2. Nf3 {[%emt 0:00:21]} d6 {[%emt 0:00:06]} 3. d4 {[%emt 0:00:08]} cxd4 {[%emt 0:00:05]} 4. Nxd4 {[%emt 0:00:08]} Nf6 {[%emt 0:00:03]} 5. f3 {[%emt 0:00:11]} e5 {[%emt 0:00:13]} 6. Nb3 {[%emt 0:00:07]} Be7 {[%emt 0:00:06]} 7. c4 {[%emt 0:00:33]} a5 $1 {[%emt 0:00:15] The main line 7...a5 scores better than 7...0-0.} 8. Nc3 {[%emt 0:04:05] B55: Sicilian: 2...d6 3 d4 cxd4 4 Nxd4 Nf6 5 f3.} O-O {[%emt 0:00:46]} 9. Be3 {[%emt 0:01:33]} Nc6 {[%emt 0:02:32]} 10. Be2 {[%emt 0:04:15]} Nh5 {[%emt 0:00:32]} 11. Qd2 $146 {[%emt 0:08:21]} ({Predecessor:} 11. Nd5 a4 12. Nd2 Nf4 13. O-O Bg5 14. Bb6 Qd7 15. Nb1 Nxd5 16. cxd5 Nd4 17. Bxd4 exd4 18. Qxd4 {0-1 Sattarov,B (2351)-Sjugirov,S (2695) Chessable Masters Play In rapid 2024 (8)}) 11... Nf4 {[%emt 0:04:52]} 12. O-O {[%emt 0:00:10]} a4 {[%emt 0:01:59]} 13. Nc1 {[%emt 0:02:22]} Bg5 {[%emt 0:02:12]} 14. Nb5 {[%emt 0:29:19]} Be6 {[%emt 0:07:12]} 15. Rd1 {[%emt 0:07:15]} Nxe2+ {[%emt 0:07:18]} 16. Nxe2 {[%emt 0:00:44]} Bxc4 {[%emt 0:03:57]} 17. Nec3 {[%emt 0:02:51]} (17. Bxg5 $5 Qb6+ $8 18. Be3 Qxb5 19. Nc3 $11) 17... Bxe3+ {[%emt 0:07:57]} 18. Qxe3 {[%emt 0:00:01]} Bxb5 {[%emt 0:05:00]} 19. Nxb5 {[%emt 0:00:07]} Qa5 {[%emt 0:01:09]} 20. Nxd6 {[%emt 0:00:51]} Nd4 {[%emt 0:00:32]} 21. Nf5 {[%emt 0:05:52]} Nxf5 {[%emt 0:01:28]} 22. exf5 {[%emt 0:00:02]} Rfd8 {[%emt 0:02:30]} 23. h3 {[%emt 0:11:32]} f6 {[%emt 0:04:17]} 24. Rac1 {[%emt 0:04:24]} h6 {[%emt 0:02:27]} 25. Kh2 {[%emt 0:05:33]} Qb4 {[%emt 0:06:00]} 26. b3 {[%emt 0:03:31]} Rxd1 {[%emt 0:04:13]} 27. Rxd1 {[%emt 0:00:07]} Rc8 {[%emt 0:00:09]} 28. bxa4 {[%emt 0:00:44]} Qxa4 {[%emt 0:05:26]} 29. Rb1 {[%emt 0:00:01]} Qd7 {[%emt 0:05:36]} 30. Qb3+ {[%emt 0:01:03]} Kh7 {[%emt 0:00:11]} 31. Qe6 {[%emt 0:02:02]} Qc7 {[%emt 0:02:26]} 32. Qb6 {[%emt 0:00:20]} Qc2 {[%emt 0:02:07]} 33. Qxb7 {[%emt 0:00:03]} Qxf5 {[%emt 0:00:14]} 34. Qb4 {[%emt 0:01:19]} Rd8 {[%emt 0:02:29]} 35. Re1 {[%emt 0:00:29]} Rd4 {[%emt 0:01:28]} 36. Qb1 {[%emt 0:00:30]} Qxb1 37. Rxb1 {[%emt 0:00:01]} Ra4 {[%emt 0:00:15]} 38. Rb2 {[%emt 0:00:19]} h5 {[%emt 0:00:09]} 39. g3 {[%emt 0:00:49]} h4 {[%emt 0:00:44]} 40. gxh4 {[%emt 0:00:35]} Rxh4 {[%emt 0:00:03]} 41. Kg3 {[%emt 0:00:12]} Ra4 {[%emt 0:00:05]} 42. Re2 {[%emt 0:00:59]} Kg6 {[%emt 0:00:56]} 43. Rb2 {[%emt 0:00:10]} Ra3 {[%emt 0:01:47]} 44. Re2 {[%emt 0:00:34]} Kh5 {[%emt 0:00:38]} 45. Rb2 {[%emt 0:00:51]} g5 {[%emt 0:02:27]} 46. Re2 {[%emt 0:00:18]} Ra5 {[%emt 0:02:47]} 47. Kg2 {[%emt 0:00:42]} Ra4 {[%emt 0:05:32]} 48. Kg3 {[%emt 0:00:17]} Ra3 {[%emt 0:00:04]} 49. Kg2 {[%emt 0:00:32]} Kg6 {[%emt 0:00:50]} 50. Kg3 {[%emt 0:00:30]} Kf5 {[%emt 0:00:02]} 51. Re4 {[%emt 0:00:41]} Ke6 {[%emt 0:01:19]} 52. Re2 {[%emt 0:00:22]} f5 {[%emt 0:00:55]} 53. Kg2 {[%emt 0:00:16] [#]} e4 {[%emt 0:03:38]} (53... Kd5 $1 $15 {feels stronger.}) 54. fxe4 $11 {[%emt 0:00:19]} f4 {[%emt 0:00:01]} 55. Rb2 {[%emt 0:00:31]} Ke5 {[%emt 0:00:02]} 56. Rb3 {[%emt 0:01:04]} Rxa2+ {[%emt 0:00:45]} 57. Kf3 {[%emt 0:00:01]} Rh2 {[%emt 0:00:30]} 58. Rb5+ {[%emt 0:00:16]} Kf6 {[%emt 0:00:05]} 59. Rb6+ {[%emt 0:00:22]} Kf7 {[%emt 0:01:17]} 60. Rh6 {[%emt 0:01:16]} Kg7 {[%emt 0:00:19]} 61. Rh5 {[%emt 0:00:02]} Kg6 {[%emt 0:00:12]} 62. Rh8 {[%emt 0:00:04]} Rh1 {[%emt 0:00:53]} 63. Rg8+ {[%emt 0:00:27]} Kh6 {[%emt 0:01:06]} 64. Kg2 {[%emt 0:00:33]} Ra1 {[%emt 0:01:25]} 65. h4 {[%emt 0:00:50]} Ra2+ {[%emt 0:00:04]} 66. Kf3 {[%emt 0:00:55]} Ra3+ {[%emt 0:00:08]} 67. Kf2 {[%emt 0:00:22]} gxh4 {[%emt 0:00:30]} 68. Rg4 {[%emt 0:00:32]} Ra2+ {[%emt 0:00:37]} 69. Kf3 {[%emt 0:00:41]} h3 {[%emt 0:00:43]} 70. Rh4+ {[%emt 0:00:38]} Kg5 {[%emt 0:00:04]} 71. Rxh3 {[%emt 0:00:16]} Ra8 {[%emt 0:01:23]} 72. Rh7 {[%emt 0:00:27]} Ra3+ {[%emt 0:00:03]} 1/2-1/2

[Event "Arona Festival 2024"]
[Site "Arona Tenerife"]
[Date "2024.06.28"]
[Round "8.1"]
[White "David, Alberto"]
[Black "Xue, Haowen"]
[Result "1/2-1/2"]
[ECO "B30"]
[WhiteElo "2502"]
[BlackElo "2452"]
[Annotator "TA"]
[PlyCount "51"]
[EventDate "2024.06.20"]
[EventType "swiss"]
[EventCountry "ESP"]
[SourceTitle "playchess.com"]
[Source "ChessBase"]
[SourceQuality "1"]
[TimeControl "5400+30"]

{[%evp 9,51,29,22,27,33,26,20,14,15,0,-8,-7,0,0,0,0,0,0,42,-8,-24,-22,23,30,27,19,28,21,20,-45,-34,-43,-62,-49,0,0,0,0,0,0,0,-11,-10,-13]} 1. e4 {[%emt 0:00:08]} c5 {[%emt 0:00:05]} 2. Nf3 {[%emt 0:00:07]} Nc6 {[%emt 0:00:04]} 3. Bb5 {[%emt 0:00:37]} Nf6 {[%emt 0:00:15]} 4. Bxc6 {[%emt 0:01:35]} dxc6 {[%emt 0:00:06]} 5. d3 {[%emt 0:00:36]} Bg4 {[%emt 0:00:21][%cal Bc8g4,Bg4h5,Bh5g6][%mdl 32]} 6. h3 {[%emt 0:09:35]} Bh5 {[%emt 0:01:12]} 7. Nc3 {[%emt 0:04:44]} Nd7 {[%emt 0:08:52]} 8. g4 {[%emt 0:04:33]} Bg6 {[%emt 0:00:05]} 9. e5 {[%emt 0:01:27][%cal Oe5e6]} e6 {[%emt 0:00:39]} 10. Qe2 {[%emt 0:00:56]} Qc7 {[%emt 0:10:21]} 11. a3 {[%emt 0:07:31]} h5 {[%emt 0:17:51] [#] aiming for ...hxg4.} 12. Rg1 {[%emt 0:00:32]} hxg4 {[%emt 0:01:02]} 13. hxg4 {[%emt 0:00:06]} O-O-O {[%emt 0:05:40]} 14. Bd2 {[%emt 0:13:32]} (14. Bg5 $14) 14... Be7 $11 {[%emt 0:08:34][%cal Oc5c4]} 15. O-O-O {[%emt 0:00:29]} Rh3 {[%emt 0:01:05]} 16. Kb1 {[%emt 0:05:35]} Nb6 {[%emt 0:10:56]} 17. Rh1 {[%emt 0:06:53]} Rdh8 {[%emt 0:00:47]} 18. Rxh3 {[%emt 0:00:08]} Rxh3 {[%emt 0:00:03]} 19. Bg5 {[%emt 0:08:54] [#]} ({White should try} 19. Bc1 $11) 19... c4 $1 $15 {[%emt 0:01:42]} 20. Ne4 {[%emt 0:06:01]} (20. dxc4 $2 {is the wrong capture.} Rxf3 21. Qxf3 (21. Bxe7 $2 Rxc3 22. bxc3 Qxe7 $19) 21... Bxg5 $19) (20. Bxe7 cxd3) 20... cxd3 {[%emt 0:01:45]} 21. cxd3 {[%emt 0:04:49]} Kb8 {[%emt 0:07:51]} (21... Nd5 $15 22. Bxe7 Qxe7) 22. Bxe7 $11 {The position is equal.} Qxe7 {[%emt 0:00:02]} 23. Nfg5 {[%emt 0:02:57] Excellent horsemanship.} Rh8 {[%emt 0:01:05]} 24. f4 {[%emt 0:00:50]} Rd8 {[%emt 0:06:32]} 25. Qf3 {[%emt 0:03:43] Strongly threatening f5.} f6 {[%emt 0:01:41]} 26. exf6 {[%emt 0:01:42] Weighted Error Value: White=0.11 (very precise) /Black=0.08 (flawless) .  Mistake:       	White=2     	Black=1      Inaccurate:     	---       	Black=2      OK:         	White=11    	Black=10     Best:        	White=1     	---        Brilliant:      	---       	Black=1} 1/2-1/2

[Event "Arona Festival 2024"]
[Site "Arona Tenerife"]
[Date "2024.06.28"]
[Round "8.2"]
[White "Zhao, Yuanhe"]
[Black "Gorshtein, Ido"]
[Result "1/2-1/2"]
[ECO "A38"]
[WhiteElo "2463"]
[BlackElo "2563"]
[Annotator "TA"]
[PlyCount "60"]
[EventDate "2024.06.20"]
[EventType "swiss"]
[EventCountry "ESP"]
[SourceTitle "playchess.com"]
[Source "ChessBase"]
[SourceQuality "1"]
[TimeControl "5400+30"]

{[%evp 23,60,3,0,-14,-6,-17,-14,-14,-18,-11,-20,-16,-20,-9,0,0,29,41,42,12,12,6,38,-18,0,-14,0,0,0,-11,-7,-16,-12,-3,0,-14,0,0,0]} 1. c4 {[%emt 0:00:12]} c5 {[%emt 0:00:43]} 2. Nf3 {[%emt 0:00:25]} Nc6 {[%emt 0:00:12]} 3. Nc3 {[%emt 0:00:08]} Nf6 {[%emt 0:00:17]} 4. g3 {[%emt 0:00:21]} g6 {[%emt 0:00:39]} 5. Bg2 {[%emt 0:00:08]} Bg7 {[%emt 0:00:02]} 6. O-O {[%emt 0:00:10]} O-O {[%emt 0:00:12]} 7. d3 {[%emt 0:01:19]} d6 {[%emt 0:08:41]} 8. a3 {[%emt 0:00:06]} a6 {[%emt 0:01:56]} 9. Rb1 {[%emt 0:00:08]} Rb8 {[%emt 0:00:34]} 10. b4 {[%emt 0:00:07]} cxb4 {[%emt 0:00:23]} 11. axb4 {[%emt 0:00:05]} b5 {[%emt 0:00:06]} 12. cxb5 {[%emt 0:00:03]} axb5 {[%emt 0:00:07]} 13. Be3 {[%emt 0:00:11]} Bd7 {[%emt 0:05:33]} 14. Nd4 {[%emt 0:01:08]} Ng4 {[%emt 0:10:43] [#] Threatens to win with ...Nxe3.} 15. Nxc6 {[%emt 0:08:03]} Nxe3 {[%emt 0:09:01]} 16. fxe3 {[%emt 0:00:47]} Bxc6 {[%emt 0:00:03]} 17. Bxc6 {[%emt 0:00:10]} Bxc3 {[%emt 0:00:06]} 18. d4 {[%emt 0:08:55] [#] Hoping for Rb3.} Qb6 {[%emt 0:04:29]} 19. Bg2 {[%emt 0:00:43] Strongly threatening Qd3.} e5 {[%emt 0:05:19][%cal Re5d4]} 20. Qd3 {[%emt 0:07:05]} Rbc8 {[%emt 0:03:53][%cal Re5d4]} 21. Rf6 {[%emt 0:08:39]} Kg7 {[%emt 0:09:49]} (21... exd4 22. Bd5 Kg7 (22... dxe3 23. Rxd6 Qa7 24. Qxb5 $14) 23. Rbf1 $15) 22. Rbf1 {[%emt 0:00:16]} Qd8 {[%emt 0:00:54]} (22... Bxb4 $2 {too greedy.} 23. Qb3 (23. Bd5 Rc7 $14) 23... Bd2 (23... Rc4 $2 24. Bd5 $18) 24. Rxf7+ Rxf7 25. Rxf7+ Kh6 26. Qd3 $18) 23. R6f2 {[%emt 0:03:55]} ({White should try} 23. Qxb5 $14 exd4 24. Bd5 Qxf6 25. Rxf6 Kxf6 26. Qd3) 23... Rc7 {[%emt 0:07:06] The position is equal.} 24. Kh1 {[%emt 0:06:00]} Bxb4 {[%emt 0:02:20]} 25. Qxb5 {[%emt 0:01:56]} Bc3 {[%emt 0:00:30]} 26. Qd5 {[%emt 0:03:00]} Qe7 {[%emt 0:03:16]} 27. g4 {[%emt 0:10:30]} Rd7 {[%emt 0:03:26]} 28. Qc4 {[%emt 0:02:06]} Rc7 {[%emt 0:00:16]} 29. Qd5 {[%emt 0:00:19]} Rd7 {[%emt 0:00:07]} 30. Qc4 {[%emt 0:00:31]} Rc7 {[%emt 0:00:02] Weighted Error Value: White=0.09 (flawless) /Black=0.09 (flawless) .  Mistake:       	White=1     	---        Inaccurate:     	White=1     	Black=2      OK:         	White=6     	Black=6} 1/2-1/2